[Event "NJSK 2026 Jeugd C"]
[Site "Helmond, Netherlands"]
[Date "2026.04.26"]
[Round "2.13"]
[White "Mendelsohn, Saffran"]
[Black "Cubuk, Armin"]
[Result "1-0"]
[TimeControl "90min/40moves + 30sec/move"]
[WhiteTitle "-"]
[BlackTitle "-"]
[WhiteFideId "40108996"]
[BlackFideId "40105423"]
[WhiteElo "1767"]
[BlackElo "1881"]

1. e4 {[%clk 01:30:48]} {[%emt 00:00:12]} c6 {[%clk 01:30:57]} {[%emt
00:00:04]} 2. d4 {[%clk 01:31:13]} {[%emt 00:00:05]} d5 {[%clk 01:31:24]}
{[%emt 00:00:03]} 3. e5 {[%clk 01:31:29]} {[%emt 00:00:14]} c5 {[%clk
01:31:12]} {[%emt 00:00:42]} 4. dxc5 {[%clk 01:31:36]} {[%emt 00:00:21]} Nc6
{[%clk 01:31:35]} {[%emt 00:00:08]} 5. Bb5 {[%clk 01:31:48]} {[%emt 00:00:19]}
e6 {[%clk 01:29:54]} {[%emt 00:02:13]} 6. Be3 {[%clk 01:31:01]} {[%emt
00:01:15]} Nge7 {[%clk 01:27:27]} {[%emt 00:02:56]} 7. c3 {[%clk 01:29:16]}
{[%emt 00:02:15]} Nf5 {[%clk 01:24:30]} {[%emt 00:03:28]} 8. Bd4 {[%clk
01:28:58]} {[%emt 00:00:48]} Be7 {[%clk 01:09:43]} {[%emt 00:15:16]} 9. Nf3
{[%clk 01:22:57]} {[%emt 00:06:31]} O-O {[%clk 01:08:08]} {[%emt 00:02:05]} 10.
Bxc6 {[%clk 01:20:01]} {[%emt 00:03:28]} bxc6 {[%clk 01:08:26]} {[%emt
00:00:11]} 11. O-O {[%clk 01:17:47]} {[%emt 00:02:39]} Rb8 {[%clk 00:58:27]}
{[%emt 00:10:30]} 12. Qc2 {[%clk 01:06:03]} {[%emt 00:12:19]} Qc7 {[%clk
00:35:46]} {[%emt 00:23:11]} 13. Nbd2 {[%clk 00:59:51]} {[%emt 00:06:42]} a5
{[%clk 00:31:09]} {[%emt 00:05:07]} 14. Rfb1 {[%clk 00:46:24]} {[%emt
00:13:56]} Qa7 {[%clk 00:27:59]} {[%emt 00:03:39]} 15. b4 {[%clk 00:44:22]}
{[%emt 00:02:33]} Bd7 {[%clk 00:22:18]} {[%emt 00:06:12]} 16. a3 {[%clk
00:42:06]} {[%emt 00:02:46]} f6 {[%clk 00:19:37]} {[%emt 00:03:11]} 17. Nb3
{[%clk 00:38:38]} {[%emt 00:03:58]} a4 {[%clk 00:15:14]} {[%emt 00:04:54]} 18.
Nc1 {[%clk 00:37:51]} {[%emt 00:01:15]} Be8 {[%clk 00:13:33]} {[%emt 00:02:11]}
19. Qe2 {[%clk 00:32:18]} {[%emt 00:06:03]} Qd7 {[%clk 00:12:25]} {[%emt
00:01:38]} 20. Nd3 {[%clk 00:31:36]} {[%emt 00:01:12]} Bg6 {[%clk 00:12:27]}
{[%emt 00:00:29]} 21. Re1 {[%clk 00:31:09]} {[%emt 00:00:57]} Bf7 {[%clk
00:11:30]} {[%emt 00:01:26]} 22. Nf4 {[%clk 00:29:38]} {[%emt 00:02:01]} Nxd4
{[%clk 00:11:02]} {[%emt 00:00:59]} 23. cxd4 {[%clk 00:28:26]} {[%emt
00:01:42]} f5 {[%clk 00:10:29]} {[%emt 00:01:04]} 24. Qc2 {[%emt 00:02:00]} g5
{[%clk 00:09:50]} 25. Ne2 {[%clk 00:28:08]} {[%emt 00:00:25]} Kh8 {[%clk
00:09:01]} {[%emt 00:01:20]} 26. Nc3 {[%clk 00:27:32]} {[%emt 00:01:06]} Rg8
{[%clk 00:08:22]} {[%emt 00:01:10]} 27. Nd2 {[%clk 00:25:53]} {[%emt 00:02:09]}
g4 {[%clk 00:07:07]} {[%emt 00:01:45]} 28. Ne2 {[%clk 00:24:11]} {[%emt
00:02:10]} Bg5 {[%clk 00:06:30]} {[%emt 00:01:08]} 29. g3 {[%clk 00:22:29]}
{[%emt 00:02:12]} f4 {[%clk 00:02:19]} {[%emt 00:04:41]} 30. gxf4 {[%clk
00:20:24]} {[%emt 00:02:35]} Bg6 {[%clk 00:02:14]} {[%emt 00:00:36]} 31. Qc3
{[%clk 00:20:22]} {[%emt 00:00:32]} Bh6 {[%clk 00:02:20]} {[%emt 00:00:23]} 32.
Nf1 {[%clk 00:19:38]} {[%emt 00:01:14]} Be4 {[%clk 00:01:52]} {[%emt 00:00:57]}
33. Nd2 {[%clk 00:19:47]} {[%emt 00:00:22]} Bf3 {[%clk 00:01:18]} {[%emt
00:01:04]} 34. Nxf3 {[%clk 00:19:27]} {[%emt 00:00:50]} gxf3+ {[%clk 00:01:43]}
{[%emt 00:00:06]} 35. Ng3 {[%clk 00:19:50]} {[%emt 00:00:06]} Rbf8 {[%clk
00:01:48]} {[%emt 00:00:25]} 36. Re3 {[%clk 00:16:49]} {[%emt 00:03:32]} Bxf4
{[%clk 00:01:42]} {[%emt 00:00:35]} 37. Rxf3 {[%clk 00:17:12]} {[%emt
00:00:07]} h5 {[%clk 00:02:02]} {[%emt 00:00:10]} 38. Kh1 {[%clk 00:17:20]}
{[%emt 00:00:21]} Qh7 {[%clk 00:01:26]} {[%emt 00:01:06]} 39. Nxh5 {[%clk
00:13:55]} {[%emt 00:03:56]} Qe4 {[%clk 00:00:35]} {[%emt 00:01:21]} 40. Nf6
{[%clk 00:13:43]} {[%emt 00:00:41]} Rxf6 {[%clk 00:00:43]} {[%emt 00:00:22]} 41.
exf6 {[%clk 00:14:12]} {[%emt 00:00:02]} Rg6 {[%clk 00:00:36]} {[%emt
00:00:37]} 42. Qd3 {[%clk 00:14:13]} {[%emt 00:00:28]} Qxd3 {[%clk 00:00:37]}
{[%emt 00:00:29]} 43. Rxd3 {[%clk 00:14:37]} {[%emt 00:00:07]} Rxf6 {[%clk
00:01:03]} {[%emt 00:00:03]} 44. Rh3+ {[%clk 00:14:55]} {[%emt 00:00:12]} Kg7
{[%clk 00:00:59]} {[%emt 00:00:34]} 45. Rg1+ {[%clk 00:15:00]} {[%emt
00:00:25]} Rg6 {[%clk 00:01:18]} {[%emt 00:00:12]} 46. Rxg6+ {[%clk 00:15:14]}
{[%emt 00:00:15]} Kxg6 {[%clk 00:01:47]} 47. Kg2 {[%clk 00:15:21]} {[%emt
00:00:23]} Kf5 {[%clk 00:01:53]} {[%emt 00:00:24]} 48. Kf3 {[%clk 00:15:01]}
{[%emt 00:00:50]} Bc1 {[%clk 00:02:16]} {[%emt 00:00:07]} 49. Ke2 {[%clk
00:15:17]} {[%emt 00:00:14]} Ke4 {[%clk 00:02:16]} {[%emt 00:00:29]} 50. Rd3
{[%clk 00:15:23]} {[%emt 00:00:24]} Bb2 {[%clk 00:02:31]} {[%emt 00:00:15]} 51.
h4 {[%clk 00:15:14]} {[%emt 00:00:40]} Bxd4 {[%clk 00:02:52]} {[%emt 00:00:10]}
52. Rxd4+ {[%clk 00:15:24]} {[%emt 00:00:20]} Kxd4 {[%clk 00:03:18]} {[%emt
00:00:04]} 53. h5 {[%clk 00:15:45]} {[%emt 00:00:09]} Ke5 {[%clk 00:02:48]}
{[%emt 00:01:00]} 54. Kd3 {[%clk 00:16:02]} {[%emt 00:00:13]} Kf6 {[%clk
00:02:49]} {[%emt 00:00:29]} 55. b5 {[%clk 00:16:17]} {[%emt 00:00:14]} cxb5
{[%clk 00:03:14]} {[%emt 00:00:05]} 56. c6 {[%clk 00:16:39]} {[%emt 00:00:08]}
b4 {[%clk 00:03:42]} {[%emt 00:00:03]} 57. c7 {[%clk 00:16:46]} {[%emt
00:00:23]} b3 {[%clk 00:02:19]} {[%emt 00:01:52]} 58. c8=Q {[%clk 00:16:55]}
{[%emt 00:00:21]} Ke5 {[%clk 00:02:40]} {[%emt 00:00:10]} 59. h6 {[%clk
00:17:14]} {[%emt 00:00:10]} d4 {[%clk 00:03:03]} {[%emt 00:00:07]} 60. h7
{[%clk 00:17:37]} {[%emt 00:00:07]} b2 {[%clk 00:03:30]} {[%emt 00:00:03]} 61.
Qb8+ {[%clk 00:17:57]} {[%emt 00:00:10]} Kd5 {[%clk 00:03:53]} {[%emt
00:00:07]} 62. Qxb2 {[%clk 00:18:18]} {[%emt 00:00:10]} e5 {[%clk 00:04:20]}
{[%emt 00:00:03]} 63. f3 {[%clk 00:18:35]} {[%emt 00:00:13]} Kd6 {[%clk
00:04:44]} {[%emt 00:00:06]} 64. h8=Q {[%clk 00:18:55]} {[%emt 00:00:09]} e4+
{[%clk 00:05:10]} {[%emt 00:00:04]} 65. fxe4 {[%clk 00:19:14]} {[%emt
00:00:12]} Kc6 {[%clk 00:05:35]} {[%emt 00:00:04]} 66. Qf6+ {[%clk 00:19:28]}
{[%emt 00:00:15]} Kc7 {[%clk 00:05:59]} {[%emt 00:00:07]} 67. Qbb6+ {[%clk
00:19:53]} {[%emt 00:00:05]} Kd7 {[%clk 00:06:23]} {[%emt 00:00:06]} 68. Qb7+
{[%clk 00:20:07]} {[%emt 00:00:16]} Ke8 {[%clk 00:06:50]} {[%emt 00:00:04]} 69.
Qfe7# {[%clk 00:20:30]} {[%emt 00:00:06]} 1-0

[Event "NJSK 2026 Jeugd C"]
[Site "Helmond, Netherlands"]
[Date "2026.04.26"]
[Round "2.14"]
[White "Ozbek, Ahmet Naim"]
[Black "Fu, Ziqing"]
[Result "1/2-1/2"]
[TimeControl "90min/40moves + 30sec/move"]
[WhiteTitle "-"]
[BlackTitle "-"]
[WhiteFideId "40101975"]
[BlackFideId "40109623"]
[WhiteElo "1869"]
[BlackElo "1810"]

1. d4 {[%clk 01:30:55]} {[%emt 00:00:02]} d5 {[%clk 01:30:12]} {[%emt
00:00:48]} 2. c4 {[%clk 01:31:19]} {[%emt 00:00:06]} e6 {[%clk 01:29:54]}
{[%emt 00:00:48]} 3. Nf3 {[%clk 01:31:42]} {[%emt 00:00:06]} Nf6 {[%clk
01:29:48]} {[%emt 00:00:37]} 4. g3 {[%clk 01:32:05]} {[%emt 00:00:06]} c5
{[%clk 01:28:59]} {[%emt 00:01:20]} 5. cxd5 {[%clk 01:32:21]} {[%emt 00:00:14]}
Nxd5 {[%clk 01:28:37]} {[%emt 00:00:52]} 6. Bg2 {[%clk 01:29:37]} {[%emt
00:03:14]} Bd6 {[%clk 01:28:37]} {[%emt 00:00:30]} 7. O-O {[%clk 01:28:22]}
{[%emt 00:01:45]} O-O {[%clk 01:28:30]} {[%emt 00:00:37]} 8. e4 {[%clk
01:27:29]} {[%emt 00:01:22]} Nb6 {[%clk 01:28:14]} {[%emt 00:00:47]} 9. Nc3
{[%clk 01:25:13]} {[%emt 00:02:46]} Nc6 {[%clk 01:27:56]} {[%emt 00:00:49]} 10.
dxc5 {[%clk 01:20:48]} {[%emt 00:04:54]} Bxc5 {[%clk 01:28:03]} {[%emt
00:00:23]} 11. Bf4 {[%clk 01:20:56]} {[%emt 00:00:22]} Qe7 {[%clk 01:26:34]}
{[%emt 00:01:59]} 12. a3 {[%clk 01:20:10]} {[%emt 00:01:16]} Rd8 {[%clk
01:26:28]} {[%emt 00:00:36]} 13. Qc2 {[%clk 01:20:29]} {[%emt 00:00:10]} Bd4
{[%clk 01:26:12]} {[%emt 00:00:48]} 14. Nb5 {[%clk 01:14:37]} {[%emt 00:06:21]}
e5 {[%clk 01:26:01]} {[%emt 00:00:41]} 15. Bd2 {[%clk 01:11:51]} {[%emt
00:03:16]} Be6 {[%clk 01:26:12]} {[%emt 00:00:19]} 16. Nbxd4 {[%clk 01:08:15]}
{[%emt 00:04:06]} Nxd4 {[%clk 01:26:19]} {[%emt 00:00:22]} 17. Nxd4 {[%clk
01:08:16]} {[%emt 00:00:29]} exd4 {[%clk 01:26:30]} {[%emt 00:00:18]} 18. Ba5
{[%clk 01:06:08]} {[%emt 00:02:39]} Rac8 {[%clk 01:25:34]} {[%emt 00:01:25]} 19.
Qd2 {[%clk 01:05:54]} {[%emt 00:00:45]} Qc5 {[%clk 01:23:17]} {[%emt 00:02:47]}
20. Rfc1 {[%clk 01:03:50]} {[%emt 00:02:34]} Nc4 {[%clk 01:21:04]} {[%emt
00:02:42]} 21. Rxc4 {[%clk 01:02:52]} {[%emt 00:01:29]} Bxc4 {[%clk 01:19:50]}
{[%emt 00:01:43]} 22. Bxd8 {[%clk 01:01:13]} {[%emt 00:02:09]} Rxd8 {[%clk
01:20:00]} {[%emt 00:00:21]} 23. Rc1 {[%clk 01:00:57]} {[%emt 00:00:45]} Qb5
{[%clk 01:19:47]} {[%emt 00:00:42]} 24. b4 {[%clk 00:51:28]} {[%emt 00:10:01]}
Be6 {[%clk 01:19:14]} {[%emt 00:01:03]} 25. Bf1 {[%clk 00:47:12]} {[%emt
00:04:46]} Qe5 {[%clk 01:18:30]} {[%emt 00:01:13]} 26. Bd3 {[%clk 00:46:18]}
{[%emt 00:01:24]} Rc8 {[%clk 01:17:27]} {[%emt 00:01:33]} 27. Rxc8+ {[%clk
00:45:28]} {[%emt 00:01:22]} Bxc8 {[%clk 01:17:47]} {[%emt 00:00:09]} 28. Qc2
{[%clk 00:45:27]} {[%emt 00:00:30]} Bd7 {[%clk 01:16:59]} {[%emt 00:01:18]} 29.
f4 {[%clk 00:40:48]} {[%emt 00:05:10]} Qe6 {[%clk 01:16:40]} {[%emt 00:00:41]}
30. Qc7 {[%clk 00:36:08]} {[%emt 00:05:18]} Qc6 {[%clk 01:15:06]} {[%emt
00:02:03]} 31. Qxc6 {[%clk 00:27:49]} {[%emt 00:08:50]} Bxc6 {[%clk 01:14:57]}
{[%emt 00:00:39]} 32. Kf2 {[%clk 00:28:00]} {[%emt 00:00:19]} Kf8 {[%clk
01:15:22]} {[%emt 00:00:04]} 33. b5 {[%clk 00:25:16]} {[%emt 00:03:15]} Bd7
{[%clk 01:15:45]} {[%emt 00:00:07]} 34. Kf3 {[%clk 00:25:33]} {[%emt 00:00:12]}
Be6 {[%clk 01:13:54]} {[%emt 00:02:22]} 35. f5 {[%clk 00:21:45]} {[%emt
00:04:18]} Bb3 {[%clk 01:13:35]} {[%emt 00:00:48]} 36. Kf4 {[%clk 00:18:50]}
{[%emt 00:03:26]} f6 {[%clk 01:13:59]} {[%emt 00:00:06]} 37. e5 {[%clk
00:18:34]} {[%emt 00:00:46]} Bd5 {[%clk 01:13:36]} {[%emt 00:00:52]} 38. exf6
{[%clk 00:19:00]} {[%emt 00:00:05]} gxf6 {[%clk 01:13:59]} {[%emt 00:00:06]} 39.
Be4 {[%clk 00:19:01]} {[%emt 00:00:29]} Bc4 {[%clk 01:14:16]} {[%emt 00:00:14]}
40. Bxb7 {[%clk 00:19:19]} {[%emt 00:00:12]} Bxb5 {[%clk 01:14:40]} {[%emt
00:00:05]} 41. Ke4 {[%clk 00:19:37]} {[%emt 00:00:12]} d3 {[%clk 01:14:46]}
{[%emt 00:00:25]} 42. Ke3 {[%clk 00:19:46]} {[%emt 00:00:21]} Ke7 {[%clk
01:14:43]} {[%emt 00:00:32]} 43. Be4 {[%clk 00:20:08]} {[%emt 00:00:09]} Kd6
{[%clk 01:14:51]} {[%emt 00:00:22]} 44. Bxd3 {[%clk 00:19:50]} {[%emt
00:00:48]} Bxd3 {[%clk 01:15:17]} {[%emt 00:00:04]} 45. Kxd3 {[%clk 00:20:16]}
{[%emt 00:00:04]} Ke5 {[%clk 01:15:43]} {[%emt 00:00:05]} 46. g4 {[%clk
00:20:30]} {[%emt 00:00:15]} Kf4 {[%clk 01:16:05]} {[%emt 00:00:08]} 47. h3
{[%clk 00:20:54]} {[%emt 00:00:06]} h5 {[%clk 01:16:16]} {[%emt 00:00:18]} 48.
gxh5 {[%clk 00:21:04]} {[%emt 00:00:21]} Kxf5 {[%clk 01:16:28]} {[%emt
00:00:18]} 49. h4 {[%clk 00:21:04]} {[%emt 00:00:29]} Ke6 {[%clk 01:16:44]}
{[%emt 00:00:14]} 50. Ke4 {[%clk 00:21:23]} {[%emt 00:00:11]} Kf7 {[%clk
01:17:10]} {[%emt 00:00:04]} 51. Kf5 {[%clk 00:21:10]} {[%emt 00:00:43]} Kg7
{[%clk 01:17:35]} {[%emt 00:00:05]} 52. a4 {[%clk 00:20:47]} {[%emt 00:00:54]}
a5 {[%clk 01:17:37]} {[%emt 00:00:28]} 53. Ke6 {[%clk 00:20:28]} {[%emt
00:00:49]} Kh6 {[%clk 01:18:03]} {[%emt 00:00:04]} 54. Kxf6 {[%clk 00:20:54]}
{[%emt 00:00:04]} Kxh5 {[%clk 01:18:28]} {[%emt 00:00:05]} 55. Ke5 {[%clk
00:21:19]} {[%emt 00:00:05]} Kxh4 {[%clk 01:18:46]} {[%emt 00:00:11]} 56. Kd5
{[%clk 00:21:46]} {[%emt 00:00:04]} Kg5 {[%clk 01:19:07]} {[%emt 00:00:09]} 57.
Kc5 {[%clk 00:22:13]} {[%emt 00:00:03]} Kf6 {[%clk 01:19:32]} {[%emt 00:00:04]}
58. Kb5 {[%clk 00:21:35]} {[%emt 00:01:08]} Ke7 {[%clk 01:19:56]} {[%emt
00:00:06]} 59. Kxa5 {[%clk 00:21:55]} {[%emt 00:00:11]} Kd8 {[%clk 01:20:22]}
{[%emt 00:00:04]} 1/2-1/2

[Event "NJSK 2026 Jeugd C"]
[Site "Helmond, Netherlands"]
[Date "2026.04.26"]
[Round "2.15"]
[White "Huang, Vincent"]
[Black "De Wit, Jim"]
[Result "1-0"]
[TimeControl "90min/40moves + 30sec/move"]
[WhiteTitle "-"]
[BlackTitle "-"]
[WhiteFideId "40104184"]
[BlackFideId "1097326"]
[WhiteElo "1855"]
[BlackElo "1749"]

1. d4 {[%clk 01:30:58]} {[%emt 00:00:02]} Nf6 {[%clk 01:30:58]} {[%emt
00:00:02]} 2. c4 {[%clk 01:31:24]} {[%emt 00:00:04]} g6 {[%clk 01:31:21]}
{[%emt 00:00:08]} 3. Nc3 {[%clk 01:31:49]} {[%emt 00:00:05]} d5 {[%clk
01:31:47]} {[%emt 00:00:04]} 4. e3 {[%clk 01:32:07]} {[%emt 00:00:11]} Bg7
{[%clk 01:32:11]} {[%emt 00:00:06]} 5. Nf3 {[%clk 01:32:26]} {[%emt 00:00:10]}
O-O {[%clk 01:32:29]} {[%emt 00:00:13]} 6. Bd3 {[%clk 01:32:12]} {[%emt
00:00:43]} c5 {[%clk 01:32:42]} {[%emt 00:00:18]} 7. O-O {[%clk 01:31:11]}
{[%emt 00:01:30]} cxd4 {[%clk 01:32:24]} {[%emt 00:00:50]} 8. exd4 {[%clk
01:31:29]} {[%emt 00:00:12]} Nc6 {[%clk 01:32:46]} {[%emt 00:00:08]} 9. h3
{[%clk 01:27:47]} {[%emt 00:04:12]} Be6 {[%clk 01:31:39]} {[%emt 00:01:38]} 10.
Qe2 {[%clk 01:23:13]} {[%emt 00:05:02]} Rc8 {[%clk 01:29:46]} {[%emt 00:02:24]}
11. c5 {[%clk 01:19:24]} {[%emt 00:04:20]} h6 {[%clk 01:25:20]} {[%emt
00:04:55]} 12. Be3 {[%clk 01:18:02]} {[%emt 00:01:51]} Qd7 {[%clk 01:20:32]}
{[%emt 00:05:20]} 13. Bb5 {[%clk 01:08:30]} {[%emt 00:10:01]} a6 {[%clk
01:19:47]} {[%emt 00:01:15]} 14. Ne5 {[%clk 01:07:26]} {[%emt 00:01:33]} Qc7
{[%clk 01:19:24]} {[%emt 00:00:54]} 15. Bxc6 {[%clk 01:07:16]} {[%emt
00:00:39]} bxc6 {[%clk 01:19:27]} {[%emt 00:00:28]} 16. Qxa6 {[%clk 01:03:59]}
{[%emt 00:03:47]} Nh5 {[%clk 01:17:35]} {[%emt 00:02:22]} 17. f4 {[%clk
00:59:57]} {[%emt 00:04:31]} Ng3 {[%clk 01:16:42]} {[%emt 00:01:24]} 18. Rf3
{[%clk 00:56:59]} {[%emt 00:03:27]} Bxe5 {[%clk 01:11:00]} {[%emt 00:06:12]} 19.
fxe5 {[%clk 00:55:42]} {[%emt 00:01:47]} Nf5 {[%clk 01:08:08]} {[%emt
00:03:23]} 20. Bf2 {[%clk 00:54:53]} {[%emt 00:01:18]} Ra8 {[%clk 01:05:24]}
{[%emt 00:03:15]} 21. Qd3 {[%emt 00:02:32]} Rfb8 {[%clk 01:04:08]} {[%emt
00:01:05]} 22. Qd2 {[%clk 00:52:01]} {[%emt 00:01:57]} Kh7 {[%clk 01:03:14]}
{[%emt 00:01:27]} 23. Rc1 {[%clk 00:49:38]} {[%emt 00:02:53]} Ng7 {[%clk
01:00:07]} {[%emt 00:03:37]} 24. b3 {[%clk 00:48:00]} {[%emt 00:02:08]} Ra6
{[%clk 00:56:02]} {[%emt 00:04:35]} 25. Na4 {[%clk 00:46:28]} {[%emt 00:02:03]}
Rba8 {[%clk 00:55:45]} {[%emt 00:00:47]} 26. Ra1 {[%clk 00:45:37]} {[%emt
00:01:20]} Bf5 {[%clk 00:53:37]} {[%emt 00:02:38]} 27. Nb6 {[%clk 00:44:26]}
{[%emt 00:01:40]} Rb8 {[%clk 00:51:46]} {[%emt 00:02:21]} 28. Be3 {[%clk
00:42:03]} {[%emt 00:02:53]} h5 {[%clk 00:51:17]} {[%emt 00:01:01]} 29. a4
{[%clk 00:41:40]} {[%emt 00:00:52]} e6 {[%clk 00:50:47]} {[%emt 00:01:00]} 30.
b4 {[%clk 00:41:08]} {[%emt 00:01:02]} Be4 {[%clk 00:50:37]} {[%emt 00:00:41]}
31. Rff1 {[%clk 00:40:49]} {[%emt 00:00:47]} Nf5 {[%clk 00:48:35]} {[%emt
00:02:33]} 32. Bf2 {[%clk 00:39:49]} {[%emt 00:01:30]} Kg7 {[%clk 00:44:51]}
{[%emt 00:04:14]} 33. b5 {[%clk 00:38:24]} {[%emt 00:01:55]} Ra7 {[%clk
00:43:31]} {[%emt 00:01:50]} 34. Rfd1 {[%clk 00:34:52]} {[%emt 00:04:02]} Qb7
{[%clk 00:39:17]} {[%emt 00:04:43]} 35. Qb4 {[%clk 00:31:30]} {[%emt 00:03:51]}
Ne7 {[%clk 00:38:32]} {[%emt 00:01:18]} 36. Bh4 {[%clk 00:30:16]} {[%emt
00:01:41]} Nc8 {[%clk 00:36:15]} {[%emt 00:02:48]} 37. Bf6+ {[%clk 00:29:12]}
{[%emt 00:01:34]} Kh7 {[%clk 00:35:52]} {[%emt 00:00:53]} 38. Nxc8 {[%clk
00:28:54]} {[%emt 00:00:48]} Rxc8 {[%clk 00:34:42]} {[%emt 00:01:41]} 39. b6
{[%clk 00:28:40]} {[%emt 00:00:44]} Ra6 {[%clk 00:34:22]} {[%emt 00:00:50]} 40.
Qd2 {[%clk 00:28:32]} {[%emt 00:00:37]} Rg8 {[%clk 00:30:35]} {[%emt 00:04:18]}
41. Ra3 {[%clk 00:27:10]} {[%emt 00:01:47]} Raa8 {[%clk 00:15:17]} {[%emt
00:15:53]} 42. a5 {[%clk 00:21:38]} {[%emt 00:06:02]} Ra6 {[%clk 00:12:42]}
{[%emt 00:03:05]} 43. Rf1 {[%clk 00:19:54]} {[%emt 00:02:13]} Qa8 {[%clk
00:10:28]} {[%emt 00:02:44]} 44. Rf4 {[%clk 00:19:22]} {[%emt 00:00:59]} g5
{[%clk 00:10:01]} {[%emt 00:01:00]} 45. Rf2 {[%clk 00:15:55]} {[%emt 00:03:57]}
g4 {[%clk 00:08:07]} {[%emt 00:02:25]} 46. hxg4 {[%clk 00:14:03]} {[%emt
00:02:22]} Rxg4 {[%clk 00:08:27]} {[%emt 00:00:09]} 47. Rh3 {[%clk 00:13:16]}
{[%emt 00:01:17]} Bg6 {[%clk 00:08:34]} {[%emt 00:00:23]} 48. Qe2 {[%clk
00:12:21]} {[%emt 00:01:25]} Kg8 {[%clk 00:08:27]} {[%emt 00:00:37]} 49. Qxg4
{[%clk 00:12:09]} {[%emt 00:00:43]} 1-0